bitfinex-derivatives/quotes_BTCF0:USTF0_20251216
["timestamp","ask_amount","ask_price","bid_price","bid_amount"]
[1765874803664,0.0789033,86350.0,86349.0,0.08264708]
[1765874808763,0.0115833,86350.0,86349.0,0.08264708]
[1765874810958,0.0443833,86350.0,86349.0,0.08264708]
[1765874811364,0.0115833,86350.0,86349.0,0.08264708]
[1765874812471,0.0789033,86350.0,86349.0,0.08264708]
[1765874812971,0.0789033,86350.0,86349.0,0.00391]
[1765874813172,0.0789033,86350.0,86341.0,0.00017363]
[1765874813173,0.0789043,86342.0,86341.0,0.00017363]
[1765874813381,0.4397043,86342.0,86341.0,0.00017363]
[1765874813573,0.0789048,86339.0,86330.0,0.19795257]
[1765874813772,0.0789048,86339.0,86338.0,9e-08]
[1765874814077,0.0789058,86331.0,86330.0,0.03183]
[1765874814275,0.0789065,86326.0,86325.0,0.08604]
[1765874815475,0.0789065,86326.0,86325.0,0.09915589]
[1765874815677,0.0789065,86326.0,86325.0,0.10315589]
[1765874816377,0.06732,86326.0,86325.0,0.10315589]
[1765874817074,0.06749373,86334.0,86333.0,0.06521]
[1765874818081,0.06749373,86334.0,86333.0,0.0767956]
[1765874818269,0.06749373,86334.0,86333.0,0.0787956]
[1765874826379,0.06749373,86334.0,86333.0,0.002]
[1765874826972,0.06749373,86334.0,86333.0,0.03652]
[1765874828578,0.06749373,86334.0,86333.0,0.07052]
[1765874828877,0.00017373,86334.0,86333.0,0.07052]
[1765874829086,0.00017373,86334.0,86333.0,0.47052]
[1765874829277,0.39342,86349.0,86348.0,0.0801035]
[1765874829583,0.3608,86349.0,86348.0,0.0801035]
[1765874829779,0.42777,86349.0,86348.0,0.06852]
[1765874829980,0.42777,86349.0,86348.0,0.03452]
[1765874830190,0.42777,86349.0,86348.0,0.06852]
[1765874830391,0.42877,86349.0,86348.0,0.06852]
[1765874830780,0.42977,86349.0,86348.0,0.06852]
[1765874830984,0.42977,86349.0,86348.0,0.03452]
[1765874831178,0.0785542,86343.0,86342.0,0.06852]
[1765874833395,0.0785542,86343.0,86342.0,0.07052]
[1765874833895,0.0785542,86343.0,86342.0,0.07252]
[1765874834586,0.0115842,86343.0,86342.0,0.07252]
[1765874835294,0.39342,86349.0,86348.0,0.06852]
[1765874835495,0.4393534,86349.0,86348.0,0.0801035]
[1765874835793,0.4393534,86349.0,86348.0,0.06852]
[1765874836491,0.4393534,86349.0,86348.0,0.07052]
[1765874837191,0.4393534,86349.0,86348.0,0.06952]
[1765874837391,0.4393534,86349.0,86348.0,0.07152]
[1765874837593,0.4393534,86349.0,86348.0,0.07252]
[1765874838384,0.3723834,86349.0,86348.0,0.07252]
[1765874838593,0.011583,86352.0,86351.0,0.06852]
[1765874838789,0.044203,86352.0,86351.0,0.06852]
[1765874839794,0.011583,86352.0,86351.0,0.07052]
[1765874840491,0.044203,86352.0,86351.0,0.07052]
[1765874840692,0.078553,86352.0,86351.0,0.07052]
[1765874841595,0.044203,86352.0,86351.0,0.07052]
[1765874841796,0.011583,86352.0,86351.0,0.07052]
[1765874842582,0.4050025,86356.0,86355.0,0.06852]
[1765874842892,0.0442025,86356.0,86355.0,0.06852]
[1765874843093,0.0785525,86356.0,86355.0,0.06852]
[1765874843896,0.0115825,86356.0,86355.0,0.07052]
[1765874844688,0.0442025,86356.0,86355.0,0.07052]
[1765874845395,0.0785525,86356.0,86355.0,0.07152]
[1765874845989,0.0785525,86356.0,86355.0,0.07252]
[1765874846497,0.0785525,86356.0,86355.0,0.0841026]
[1765874847099,0.0785525,86356.0,86355.0,0.07252]
[1765874848093,0.0442025,86356.0,86355.0,0.07252]
[1765874848299,0.0115825,86356.0,86355.0,0.07252]
[1765874848490,0.0785525,86356.0,86355.0,0.07252]
[1765874848888,0.0785525,86356.0,86355.0,0.0841026]
[1765874849297,0.0785525,86356.0,86355.0,0.07252]
[1765874850298,0.0785525,86356.0,86355.0,0.004]
[1765874851088,0.0785545,86341.0,86340.0,0.27787697]
[1765874851289,0.0785545,86341.0,86340.0,0.10068823]
[1765874852690,0.0785545,86341.0,86340.0,0.10268823]
[1765874853191,0.06697,86341.0,86340.0,0.10268823]
[1765874853398,0.0445341,86344.0,86343.0,0.0767642]
[1765874853791,0.0765941,86344.0,86343.0,0.0767642]
[1765874853991,0.0765941,86344.0,86343.0,0.06518]
[1765874855094,0.0765941,86344.0,86343.0,0.06618]
[1765874855498,0.0765941,86344.0,86343.0,0.06718]
[1765874859103,0.0765941,86344.0,86343.0,0.002]
[1765874860193,0.10642023,86344.0,86343.0,0.002]
[1765874860603,0.10642023,86344.0,86343.0,0.001]
[1765874860805,0.10642023,86344.0,86343.0,0.002]
[1765874861201,0.0765945,86341.0,86340.0,0.00017373]
[1765874861394,0.10642063,86341.0,86340.0,0.00017373]
[1765874862502,0.0765965,86326.0,86325.0,0.07829589]
[1765874862702,0.0765965,86326.0,86325.0,0.06518]
[1765874863109,0.0765965,86326.0,86325.0,0.07807972]
[1765874864200,0.0765965,86326.0,86325.0,0.07907972]
[1765874864799,0.0765965,86326.0,86325.0,0.08007972]
[1765874866606,0.08414883,86326.0,86325.0,0.08007972]
[1765874866797,0.01913883,86326.0,86325.0,0.08007972]
[1765874867309,0.00755233,86326.0,86325.0,0.08007972]
[1765874867512,0.00755233,86326.0,86325.0,0.44007972]
[1765874868097,0.00017373,86334.0,86325.0,0.44007972]
[1765874868098,0.00017373,86334.0,86333.0,0.06518]
[1765874868302,0.00017373,86334.0,86333.0,0.0767656]
[1765874868503,0.00017373,86334.0,86333.0,0.1267656]
[1765874868705,0.00017373,86334.0,86333.0,0.0767656]
[1765874868905,3.73e-06,86334.0,86333.0,0.4667656]
[1765874871318,3.73e-06,86334.0,86333.0,0.4697656]
[1765874871519,0.3723842,86344.0,86343.0,0.0767642]
[1765874871917,0.4053342,86344.0,86343.0,0.0767642]
[1765874872219,0.4373942,86344.0,86343.0,0.06518]
[1765874872808,0.4373942,86344.0,86343.0,0.06618]
[1765874873412,0.0765942,86344.0,86343.0,0.06718]
[1765874874418,0.0765942,86344.0,86343.0,0.06518]
[1765874874621,0.0765942,86344.0,86343.0,0.06718]
[1765874875010,0.0765942,86344.0,86343.0,0.06618]
[1765874875210,0.0765942,86344.0,86343.0,0.06718]
[1765874877016,0.0765942,86344.0,86343.0,0.06618]
[1765874877215,0.07817846,86344.0,86343.0,0.06718]
[1765874877919,0.04611846,86344.0,86343.0,0.0787642]
[1765874878221,0.01316846,86344.0,86343.0,0.0787642]
[1765874879020,0.00158426,86344.0,86343.0,0.0787642]
[1765874879224,0.00158426,86344.0,86343.0,0.2487642]
[1765874879420,0.00158426,86344.0,86343.0,0.0787642]
[1765874879824,0.00158426,86344.0,86343.0,0.1297642]
[1765874880027,0.00158426,86344.0,86343.0,0.1287642]
[1765874880328,0.00158426,86344.0,86343.0,0.1307642]
[1765874880625,0.00158426,86344.0,86343.0,0.1207642]
[1765874880825,0.00158426,86344.0,86343.0,0.0807642]
[1765874881627,0.06659426,86344.0,86343.0,0.0807642]
[1765874882018,0.00158426,86344.0,86343.0,0.0807642]
[1765874882819,0.00158426,86344.0,86343.0,0.2207642]
[1765874883027,0.00158426,86344.0,86343.0,0.4487642]
[1765874883230,0.00158426,86344.0,86343.0,0.4507642]
[1765874883714,0.00158426,86344.0,86343.0,0.4487642]
[1765874883918,0.00158426,86344.0,86343.0,0.4507642]
[1765874885224,0.01175673,86352.0,86343.0,0.4507642]
[1765874885225,0.00017373,86352.0,86351.0,0.0801531]
[1765874885624,0.06626373,86352.0,86351.0,0.0801531]
[1765874886223,0.06626373,86352.0,86351.0,0.06857]
[1765874886528,0.06626373,86352.0,86351.0,0.07057]
[1765874889828,0.06626373,86352.0,86351.0,0.06957]
[1765874890230,0.06626373,86352.0,86351.0,0.07057]
[1765874890530,0.03510799,86352.0,86351.0,0.07057]
[1765874890729,0.03510799,86352.0,86351.0,0.06957]
[1765874890925,0.00175799,86352.0,86351.0,0.06957]
[1765874891229,0.03510799,86352.0,86351.0,0.06957]
[1765874891831,0.06784799,86352.0,86351.0,0.07057]
[1765874892931,0.00175799,86352.0,86351.0,0.07057]
[1765874893228,0.03510799,86352.0,86351.0,0.07057]
[1765874893428,0.06784799,86352.0,86351.0,0.0821531]
[1765874894133,0.06784799,86352.0,86351.0,0.07057]
[1765874895026,0.06784799,86352.0,86351.0,0.06857]
[1765874895221,0.06784799,86352.0,86351.0,0.07057]
[1765874896531,0.06784799,86352.0,86351.0,0.06957]
[1765874896724,0.06784799,86352.0,86351.0,0.07057]
[1765874900237,0.06784799,86352.0,86351.0,0.0821531]
[1765874900537,0.06943225,86352.0,86351.0,0.0821531]
[1765874902331,0.06943225,86352.0,86351.0,0.07057]
[1765874910752,0.07101651,86352.0,86351.0,0.07057]
[1765874919364,0.07159651,86352.0,86351.0,0.07057]
[1765874921462,0.07318077,86352.0,86351.0,0.07057]
[1765874922369,0.00651077,86352.0,86351.0,0.07057]
[1765874922872,0.03959077,86352.0,86351.0,0.07057]
[1765874923770,0.07318077,86352.0,86351.0,0.07057]
[1765874924675,0.00651077,86352.0,86351.0,0.07057]
[1765874924874,0.00651077,86352.0,86351.0,0.23057]
[1765874925381,0.00651077,86352.0,86351.0,0.47057]
[1765874927673,0.07318077,86352.0,86351.0,0.47057]
[1765874927875,0.07318077,86352.0,86351.0,0.07057]
[1765874928076,0.00651077,86352.0,86351.0,0.12057]
[1765874928380,0.03959077,86352.0,86351.0,0.07057]
[1765874929372,0.00651077,86352.0,86351.0,0.07057]
[1765874930183,0.03959077,86352.0,86351.0,0.07057]
[1765874930681,0.07318077,86352.0,86351.0,0.07057]
[1765874931083,0.07476503,86352.0,86351.0,0.07057]
[1765874938080,0.07476503,86352.0,86351.0,0.12057]
[1765874938287,0.00809503,86352.0,86351.0,0.12057]
[1765874939383,0.07476503,86352.0,86351.0,0.07057]
[1765874939886,0.07476503,86352.0,86351.0,0.12057]
[1765874940086,0.07476503,86352.0,86351.0,0.1321531]
[1765874940386,0.07634929,86352.0,86351.0,0.1321531]
[1765874940590,0.04275929,86352.0,86351.0,0.1321531]
[1765874940886,0.04275929,86352.0,86351.0,0.0821531]
[1765874941189,0.04275929,86352.0,86351.0,0.1321531]
[1765874941580,0.04275929,86352.0,86351.0,0.1221531]
[1765874941888,0.00967929,86352.0,86351.0,0.0821531]
[1765874942286,0.00967929,86352.0,86351.0,0.1321531]
[1765874942785,0.04275929,86352.0,86351.0,0.1321531]
[1765874942979,0.00967929,86352.0,86351.0,0.0821531]
[1765874943185,0.00967929,86352.0,86351.0,0.1321531]
[1765874943786,0.07491929,86352.0,86351.0,0.0821531]
[1765874945189,0.07491929,86352.0,86351.0,0.1221531]
[1765874945489,0.07491929,86352.0,86351.0,0.1321531]
[1765874945991,0.07491929,86352.0,86351.0,0.0821531]
[1765874947086,0.07491929,86352.0,86351.0,0.1221531]
[1765874947284,0.07491929,86352.0,86351.0,0.1321531]
[1765874947486,0.07491929,86352.0,86351.0,0.0821531]
[1765874948088,0.07491929,86352.0,86351.0,0.07057]
[1765874949090,0.07491929,86352.0,86351.0,0.002]
[1765874950295,0.06524,86341.0,86340.0,0.2447185]
[1765874950486,0.06524,86341.0,86340.0,0.06765]
[1765874951182,0.07632982,86341.0,86340.0,0.06765]
[1765874951381,0.08791432,86341.0,86340.0,0.06765]
[1765874951586,0.08791432,86341.0,86340.0,0.06865]
[1765874951780,0.08791432,86341.0,86340.0,0.08966]
[1765874951975,0.08791432,86341.0,86340.0,0.06865]
[1765874952195,0.08791432,86341.0,86340.0,0.001]
[1765874952380,0.08791432,86341.0,86340.0,0.03435]
[1765874952891,0.08791432,86341.0,86340.0,0.06965]
[1765874953291,0.08791432,86341.0,86340.0,0.06865]
[1765874953596,0.08791432,86341.0,86340.0,0.002]
[1765874954095,0.08791432,86341.0,86340.0,0.03535]
[1765874954479,0.08791432,86341.0,86340.0,0.06965]
[1765874955691,0.08791432,86341.0,86340.0,0.09066]
[1765874959814,0.08949858,86341.0,86340.0,0.09066]
[1765874960209,0.08949858,86341.0,86340.0,0.06965]
[1765874961309,0.08949858,86341.0,86340.0,0.002]
[1765874962101,0.0768252,86336.0,86335.0,0.00017373]
[1765874962414,0.06524,86326.0,86320.0,0.1982333]
[1765874962606,0.0768272,86321.0,86320.0,0.2774706]
[1765874962801,0.0768272,86321.0,86320.0,0.10033486]
[1765874963014,0.07791408,86321.0,86320.0,0.11292561]
[1765874963916,0.07791408,86321.0,86320.0,0.11492561]
[1765874964909,0.07791408,86321.0,86320.0,0.16692561]
[1765874965109,0.07791408,86321.0,86320.0,0.11692561]
[1765874965704,0.07791408,86321.0,86320.0,0.11492561]
[1765874965915,0.01267408,86321.0,86320.0,0.34692561]
[1765874966316,0.01267408,86321.0,86320.0,0.34492561]
[1765874966516,0.04430408,86321.0,86320.0,0.34592561]
[1765874966715,0.04430408,86321.0,86320.0,0.11592561]
[1765874966915,0.04430408,86321.0,86320.0,0.26592561]
[1765874967822,0.08950128,86321.0,86320.0,0.11592561]
[1765874968418,0.07791408,86321.0,86320.0,0.16592561]
[1765874969608,0.07791408,86321.0,86320.0,0.11592561]
[1765874970008,0.07949868,86321.0,86320.0,0.11592561]
[1765874972421,0.09108588,86321.0,86320.0,0.10433831]
[1765874972722,0.09108588,86321.0,86320.0,0.01567831]
[1765874974127,0.09108588,86321.0,86320.0,0.04651831]
[1765874974316,0.09108588,86321.0,86320.0,0.07769831]
[1765874974920,0.09108588,86321.0,86320.0,0.07669831]
[1765874976227,0.09108588,86321.0,86320.0,0.09679831]
[1765874979520,0.02584588,86321.0,86320.0,0.09679831]
[1765874979726,0.01425868,86321.0,86320.0,0.09679831]
[1765874979927,0.01425868,86321.0,86320.0,0.14679831]
[1765874980128,0.01425868,86321.0,86320.0,0.44679831]
[1765874980926,0.00017373,86329.0,86328.0,0.0766262]
[1765874981122,0.00017373,86329.0,86328.0,0.7874262]
[1765874981532,0.00175833,86329.0,86328.0,0.7874262]
[1765874983737,0.00175833,86329.0,86328.0,0.7904262]
[1765874984037,0.00175833,86329.0,86328.0,1.5145062]
[1765874984638,0.00175833,86329.0,86328.0,1.5175062]
[1765874985738,0.06522,86338.0,86337.0,0.06504]
[1765874985939,0.0768049,86338.0,86337.0,0.42584]
[1765874986723,0.0768049,86338.0,86337.0,0.42784]
[1765874987537,0.0768049,86338.0,86337.0,0.42584]
[1765874987843,0.0768049,86338.0,86337.0,0.42884]
[1765874988032,0.0768045,86341.0,86340.0,0.08514]
[1765874988930,0.06522,86341.0,86340.0,0.44594]
[1765874989240,0.06522,86341.0,86340.0,0.08514]
[1765874989440,0.06522,86341.0,86340.0,0.08614]
[1765874990134,0.06522,86341.0,86340.0,0.08714]
[1765874991040,0.06680434,86341.0,86340.0,0.08714]
[1765874992139,0.06680434,86341.0,86340.0,0.08814]
[1765874993931,0.06680434,86341.0,86340.0,0.06804]
[1765874994740,0.06680434,86341.0,86340.0,0.08814]
[1765874995038,0.06680434,86341.0,86340.0,0.08714]
[1765874995241,0.06680434,86341.0,86340.0,0.08814]
[1765874995740,0.06680434,86341.0,86340.0,0.08714]
[1765874996642,0.06680434,86341.0,86340.0,0.08614]
[1765874996840,0.06680434,86341.0,86340.0,0.08714]
[1765874997226,0.06680434,86341.0,86340.0,0.08614]
[1765874997440,0.06680434,86341.0,86340.0,0.08714]
[1765874998144,0.06680434,86341.0,86340.0,0.08614]
[1765874998345,0.06680434,86341.0,86340.0,0.08714]
[1765874998544,0.06680434,86341.0,86340.0,0.06704]
[1765874998747,0.06680434,86341.0,86340.0,0.002]
[1765874998937,0.06680434,86341.0,86340.0,0.001]
[1765874999138,0.06680434,86341.0,86340.0,0.03586]
[1765874999648,0.06680434,86341.0,86340.0,0.002]
[1765875000341,0.06522,86341.0,86340.0,0.002]
[1765875000546,0.06838868,86341.0,86340.0,0.002]
[1765875001547,0.06838868,86341.0,86340.0,0.03586]
[1765875001749,0.06838868,86341.0,86340.0,0.002]
[1765875001945,0.06838868,86341.0,86340.0,0.03586]
[1765875002141,0.06838868,86341.0,86340.0,0.002]
[1765875002343,0.03485868,86341.0,86340.0,0.08737]
[1765875002942,0.06487868,86341.0,86340.0,0.08737]
[1765875005142,0.00316868,86341.0,86340.0,0.08737]
[1765875005348,0.03313868,86341.0,86340.0,0.08737]
[1765875005537,0.06315868,86341.0,86340.0,0.08737]
[1765875007447,0.06315868,86341.0,86340.0,0.06864]
[1765875007844,0.06315868,86341.0,86340.0,0.002]
[1765875009151,0.06315868,86341.0,86340.0,0.001]
[1765875009635,0.05999,86337.0,86336.0,0.3908]
[1765875009949,0.071575,86337.0,86336.0,0.3608]
[1765875010541,0.07474368,86337.0,86336.0,0.3608]
[1765875010750,0.07570764,86337.0,86336.0,0.3608]
[1765875011448,0.07570764,86337.0,86336.0,0.3618]
[1765875012153,0.07570764,86337.0,86336.0,0.3608]
[1765875012654,0.07570764,86337.0,86336.0,0.42358]
[1765875013650,0.07570764,86337.0,86336.0,0.42458]
[1765875017355,0.07570764,86337.0,86336.0,0.42358]
[1765875017659,0.07570764,86337.0,86336.0,0.42458]
[1765875019359,0.04568764,86337.0,86336.0,0.42458]
[1765875019655,0.04568764,86337.0,86336.0,0.42358]
[1765875019858,0.04568764,86337.0,86336.0,0.42458]
[1765875022162,0.07570764,86337.0,86336.0,0.42458]
[1765875022856,0.04568764,86337.0,86336.0,0.42458]
[1765875023050,0.01571764,86337.0,86336.0,0.42458]
[1765875023650,0.01571764,86337.0,86336.0,0.46458]
[1765875023850,0.01571764,86337.0,86336.0,0.47458]
[1765875024051,0.00413264,86337.0,86336.0,0.47458]
[1765875025659,0.00413264,86337.0,86336.0,0.83458]
[1765875026248,0.00017373,86346.0,86345.0,0.08151]
[1765875026447,0.07174753,86346.0,86345.0,0.08151]
[1765875028762,0.07274753,86346.0,86345.0,0.08151]
[1765875028962,0.07274753,86346.0,86345.0,0.08251]
[1765875029260,0.07174753,86346.0,86345.0,0.08251]
[1765875030161,0.07174753,86346.0,86345.0,0.0930939]
[1765875030354,0.04172753,86346.0,86345.0,0.0940939]
[1765875031860,0.00017373,86346.0,86345.0,0.0940939]
[1765875032569,0.01175753,86346.0,86345.0,0.0940939]
[1765875032867,0.04172753,86346.0,86345.0,0.08251]
[1765875036565,0.01175753,86346.0,86345.0,0.0940939]
[1765875036868,0.03026373,86346.0,86345.0,0.0940939]
[1765875037069,0.04184753,86346.0,86345.0,0.0940939]
[1765875037263,0.03026373,86346.0,86345.0,0.0940939]
[1765875038268,0.00017373,86346.0,86345.0,0.0940939]
[1765875038873,0.07182753,86346.0,86345.0,0.0940939]
[1765875039269,0.06024373,86346.0,86345.0,0.0940939]
[1765875039462,0.03026373,86346.0,86345.0,0.0940939]
[1765875040070,0.03026373,86346.0,86345.0,0.0950939]
[1765875040272,0.04184753,86346.0,86345.0,0.0950939]
[1765875040674,0.04184753,86346.0,86345.0,0.0940939]
[1765875040971,0.04184753,86346.0,86345.0,0.0950939]
[1765875041167,0.03026373,86346.0,86345.0,0.0950939]
[1765875041673,0.03026373,86346.0,86345.0,0.0960939]
[1765875042577,0.07182753,86346.0,86345.0,0.0960939]
[1765875043480,0.06024373,86346.0,86345.0,0.0960939]
[1765875044972,0.06024373,86346.0,86345.0,0.08451]
[1765875045380,0.06024373,86346.0,86345.0,0.0960939]
[1765875046774,0.06024373,86346.0,86345.0,0.0940939]
[1765875046975,0.06024373,86346.0,86345.0,0.0950939]
[1765875047574,0.06024373,86346.0,86345.0,0.0930939]
[1765875047774,0.06024373,86346.0,86345.0,0.0950939]
[1765875048180,0.06024373,86346.0,86345.0,0.0940939]
[1765875048586,0.06024373,86346.0,86345.0,0.0950939]
[1765875048771,0.06024373,86346.0,86345.0,0.0940939]
[1765875048974,0.06024373,86346.0,86345.0,0.0950939]
[1765875050685,0.06024373,86346.0,86345.0,0.0940939]
[1765875050886,0.06024373,86346.0,86345.0,0.0950939]
[1765875051186,0.06024373,86346.0,86345.0,0.0940939]
[1765875051376,0.06024373,86346.0,86345.0,0.0950939]
[1765875054783,0.06024373,86346.0,86345.0,0.0940939]
[1765875054979,0.06024373,86346.0,86345.0,0.0950939]
[1765875055384,0.06024373,86346.0,86345.0,0.0940939]
[1765875055591,0.06024373,86346.0,86345.0,0.0950939]
[1765875056992,0.06024373,86346.0,86345.0,0.0940939]
[1765875057287,0.06024373,86346.0,86345.0,0.0950939]
[1765875058694,0.06024373,86346.0,86345.0,0.0940939]
[1765875058895,0.06024373,86346.0,86345.0,0.0950939]
[1765875059096,0.07182753,86346.0,86345.0,0.0950939]
[1765875059486,0.06024373,86346.0,86345.0,0.0950939]
[1765875060193,0.06024373,86346.0,86345.0,0.1450939]
[1765875060393,0.06024373,86346.0,86345.0,0.0940939]
[1765875060593,0.00017373,86346.0,86345.0,0.1350939]
[1765875060793,0.06024373,86346.0,86345.0,0.0950939]
[1765875061190,0.06024373,86346.0,86345.0,0.1450939]
[1765875062301,0.03026373,86346.0,86345.0,0.1450939]
[1765875063202,0.00017373,86346.0,86345.0,0.5150939]
[1765875063898,0.00017373,86346.0,86345.0,0.1450939]
[1765875065904,0.00017373,86346.0,86345.0,0.5050939]
[1765875066694,0.00017373,86346.0,86345.0,0.8658939]
[1765875067403,0.070012,86360.0,86359.0,0.05892]
[1765875067603,0.10050946,86360.0,86359.0,0.05892]
[1765875069403,0.10050946,86360.0,86359.0,0.02839]
[1765875069605,0.10150946,86360.0,86359.0,0.02839]
[1765875070804,0.10150946,86360.0,86359.0,0.05892]
[1765875073312,0.10150946,86360.0,86359.0,0.0705021]
[1765875073910,0.071012,86360.0,86359.0,0.0705021]
[1765875074108,0.05943,86360.0,86359.0,0.0705021]
[1765875076105,0.05943,86360.0,86359.0,0.05892]
[1765875081922,0.05943,86360.0,86359.0,0.0705021]
[1765875084220,0.05943,86360.0,86359.0,0.05892]
[1765875092227,0.02934,86360.0,86359.0,0.05892]
[1765875092426,0.05943,86360.0,86359.0,0.05892]
[1765875108044,0.0713523,86357.0,86356.0,0.41911]
[1765875113154,0.0713523,86357.0,86356.0,0.05831]
[1765875136360,0.0713523,86357.0,86356.0,0.0698925]
[1765875136671,0.0713523,86357.0,86356.0,0.05831]
[1765875140067,0.0420323,86357.0,86356.0,0.05831]
[1765875140372,0.0115823,86357.0,86356.0,0.05831]
[1765875140571,0.0401923,86357.0,86356.0,0.05831]
[1765875140771,0.0689623,86357.0,86356.0,0.05831]
[1765875141273,0.0689623,86357.0,86352.0,0.37848]
[1765875141274,0.0689629,86353.0,86352.0,0.43805]
[1765875142466,0.0689629,86353.0,86352.0,0.43905]
[1765875147287,0.09972729,86353.0,86352.0,0.001]
[1765875147477,0.46052729,86353.0,86352.0,0.03051]
[1765875147780,0.46052729,86353.0,86352.0,0.06057]
[1765875148577,0.46152729,86353.0,86352.0,0.06057]
[1765875149177,0.46152729,86353.0,86352.0,0.05957]
[1765875149476,0.0689643,86342.0,86340.0,0.01704]
[1765875149671,0.0689643,86342.0,86341.0,0.42037]
[1765875151970,0.0689643,86342.0,86341.0,0.42137]
[1765875152579,0.0689643,86342.0,86341.0,0.42037]
[1765875152780,0.0115843,86342.0,86341.0,0.42137]
[1765875152964,0.0394643,86342.0,86341.0,0.42137]
[1765875153169,0.0686643,86342.0,86341.0,0.42137]
[1765875154981,0.0686643,86342.0,86341.0,0.06057]
[1765875156282,0.0686643,86342.0,86341.0,0.001]
[1765875156782,0.0686643,86342.0,86341.0,0.02946]
[1765875157383,0.0686643,86342.0,86341.0,0.02846]
[1765875157780,0.0686654,86334.0,86333.0,0.05869373]
[1765875158380,0.0686654,86334.0,86333.0,0.02863373]
[1765875158579,0.0686654,86334.0,86333.0,0.05869373]
[1765875160684,0.0115854,86334.0,86333.0,0.05969373]
[1765875160891,0.0394643,86342.0,86341.0,0.05852]
[1765875161779,0.0686643,86342.0,86341.0,0.05852]
[1765875162384,0.0696643,86342.0,86341.0,0.05852]
[1765875162784,0.0686643,86342.0,86341.0,0.05852]
[1765875169491,0.0686643,86342.0,86341.0,0.05952]
[1765875169875,0.0686643,86342.0,86341.0,0.001]
[1765875170076,0.0686643,86342.0,86341.0,0.03046]
[1765875170280,0.0686643,86342.0,86341.0,0.002]
[1765875170589,0.0686643,86342.0,86341.0,0.03046]
[1765875171187,0.0686643,86342.0,86341.0,0.02946]
[1765875171583,0.0686643,86342.0,86341.0,0.02846]
[1765875171982,0.0686643,86342.0,86341.0,0.05852]
[1765875175993,0.0686648,86339.0,86338.0,0.41932]
[1765875177304,0.0686648,86339.0,86338.0,0.42032]
[1765875179189,0.0686648,86339.0,86338.0,0.05952]
[1765875180596,0.0686648,86339.0,86338.0,0.001]
[1765875180798,0.0686648,86339.0,86338.0,0.05952]
[1765875182193,0.0686648,86339.0,86338.0,0.05852]
[1765875182399,0.0686648,86339.0,86338.0,0.05952]
[1765875190398,0.09974871,86339.0,86338.0,0.05952]
[1765875193194,0.09974871,86339.0,86338.0,0.05723]
[1765875193903,0.09974871,86339.0,86338.0,0.001]
[1765875194111,0.09974871,86339.0,86338.0,0.05896]
[1765875195311,0.09974871,86339.0,86338.0,0.05796]
[1765875197011,0.0818754,86334.0,86333.0,0.03036373]
[1765875197213,0.0818754,86334.0,86333.0,0.05813373]
[1765875197407,0.11296132,86334.0,86333.0,0.05813373]
[1765875204007,0.11287231,86334.0,86333.0,0.05813373]
[1765875205617,0.09941231,86334.0,86333.0,0.05813373]
[1765875206110,0.0684154,86334.0,86333.0,0.05813373]
[1765875209427,0.0115854,86334.0,86333.0,0.05813373]
[1765875209612,0.3723835,86348.0,86347.0,0.05796]
[1765875209810,0.0115835,86348.0,86347.0,0.05796]
[1765875210520,0.0393835,86348.0,86347.0,0.05796]
[1765875210706,0.0694135,86348.0,86347.0,0.05796]
[1765875210912,0.0125835,86348.0,86347.0,0.05796]
[1765875211418,0.0694135,86348.0,86347.0,0.05796]
[1765875211615,0.0403835,86348.0,86347.0,0.05796]
[1765875212819,0.0694135,86348.0,86347.0,0.05796]
[1765875217122,0.0403835,86348.0,86347.0,0.05796]
[1765875219726,0.0676335,86348.0,86347.0,0.05796]
[1765875223529,0.0660946,86340.0,86339.0,0.42013]
[1765875223826,0.0660946,86340.0,86339.0,0.05933]
[1765875224224,0.0825346,86340.0,86339.0,0.05933]
[1765875225124,0.0660954,86334.0,86333.0,0.05950373]
[1765875225330,0.0660954,86334.0,86333.0,0.15950373]
[1765875226430,0.0660954,86334.0,86333.0,0.16050373]
[1765875226827,0.0660954,86334.0,86333.0,0.03111373]
[1765875227335,0.0660954,86334.0,86333.0,0.06150373]
[1765875228521,0.0660954,86334.0,86333.0,0.06050373]
[1765875234533,0.0660954,86334.0,86333.0,0.05950373]
[1765875234734,0.0660954,86334.0,86333.0,0.06050373]
[1765875235534,0.0660954,86334.0,86333.0,0.05950373]
[1765875235734,0.0660954,86334.0,86333.0,0.06050373]
[1765875236329,0.0660954,86334.0,86333.0,0.05950373]
[1765875236530,0.0660954,86334.0,86333.0,0.06050373]
[1765875238434,0.0660954,86334.0,86333.0,0.05950373]
[1765875238624,0.0660954,86334.0,86333.0,0.06050373]
[1765875239234,0.0660954,86334.0,86333.0,0.05950373]
[1765875239440,0.0660954,86334.0,86333.0,0.06050373]
[1765875240238,0.0799454,86334.0,86333.0,0.06050373]
[1765875241442,0.0799454,86334.0,86333.0,0.05950373]
[1765875241641,0.0799454,86334.0,86333.0,0.06050373]
[1765875242341,0.0660954,86334.0,86333.0,0.06050373]
[1765875243039,0.0115854,86334.0,86333.0,0.07108933]
[1765875243240,0.0115854,86334.0,86333.0,0.07208933]
[1765875243633,0.3723846,86340.0,86333.0,0.07208933]
[1765875243634,0.3723846,86340.0,86339.0,0.05893]
[1765875244236,0.4000246,86340.0,86339.0,0.05893]
[1765875245242,0.4281146,86340.0,86339.0,0.05893]
[1765875245442,0.4281146,86340.0,86339.0,0.05993]
[1765875246545,0.4448646,86340.0,86339.0,0.02989]
[1765875246745,0.4448646,86340.0,86339.0,0.05993]
[1765875247145,0.4448646,86340.0,86339.0,0.001]
[1765875247649,0.4448646,86340.0,86333.0,0.00017373]
[1765875247650,0.0673154,86334.0,86333.0,0.05910373]
[1765875249249,0.0673154,86334.0,86333.0,0.06010373]
[1765875249439,0.0673154,86334.0,86333.0,0.03006373]
[1765875249638,0.0673154,86334.0,86333.0,0.06010373]
[1765875250747,0.0673154,86334.0,86333.0,0.05910373]
[1765875252040,0.0673154,86334.0,86333.0,0.00017373]
[1765875254352,0.0673154,86334.0,86333.0,0.02906373]
[1765875254546,0.0673154,86334.0,86333.0,0.00017373]
[1765875254753,0.0673154,86334.0,86333.0,0.05910373]
[1765875256657,0.0683154,86334.0,86333.0,0.05910373]
[1765875257154,0.0673154,86334.0,86333.0,0.05910373]
[1765875260754,0.0673154,86334.0,86333.0,0.06010373]
[1765875261555,0.0673154,86334.0,86333.0,0.05910373]
[1765875263056,0.0673154,86334.0,86333.0,0.06010373]
[1765875263260,0.0392254,86334.0,86333.0,0.06010373]
[1765875264556,0.0673154,86334.0,86333.0,0.06010373]
[1765875265953,0.0115854,86334.0,86333.0,0.06010373]
[1765875266663,0.0392254,86334.0,86333.0,0.06010373]